[Event "Titled Tuesday Blitz April 12 Early 2022"]
[White "Ezat, Mohamed"]
[Black "Avazkhonov, Alikhon"]
[WhiteFideId "10600906"]
[BlackFideId "14208504"]
[WhiteElo "2386"]
[BlackElo "1739"]
[Result "1-0"]
[Round "02"]
[TimeControl "180+1"]
[Date "2022.04.13"]
[WhiteClock "0:00:23"]
[BlackClock "0:00:02"]

1. d4 {[%clk 0:03:00]}  d5 {[%clk 0:02:58]} 2. c4 {[%clk 0:02:56]}  e6 {[%clk 0:02:58]} 3. Nc3 {[%clk 0:02:57]}  c6 {[%clk 0:02:58]} 4. e4 {[%clk 0:02:56]}  Bb4 {[%clk 0:02:57]} 5. Bd2 {[%clk 0:02:54]}  c5 {[%clk 0:01:52]} 6. cxd5 {[%clk 0:02:51]}  cxd4 {[%clk 0:01:25]} 7. Qa4+ {[%clk 0:02:49]}  Nd7 {[%clk 0:01:24]} 8. Qxb4 {[%clk 0:02:48]}  dxc3 {[%clk 0:01:24]} 9. Bxc3 {[%clk 0:02:48]}  Ngf6 {[%clk 0:01:24]} 10. Bb5 {[%clk 0:02:44]}  exd5 {[%clk 0:01:18]} 11. O-O-O {[%clk 0:02:35]}  dxe4 {[%clk 0:00:38]} 12. Ne2 {[%clk 0:02:34]}  Qe7 {[%clk 0:00:37]} 13. Qxe7+ {[%clk 0:02:27]}  Kxe7 {[%clk 0:00:37]} 14. Bb4+ {[%clk 0:02:27]}  Ke8 {[%clk 0:00:34]} 15. Ng3 {[%clk 0:02:28]}  a6 {[%clk 0:00:34]} 16. Ba4 {[%clk 0:02:24]}  b5 {[%clk 0:00:32]} 17. Bb3 {[%clk 0:02:24]}  a5 {[%clk 0:00:27]} 18. Bd6 {[%clk 0:02:23]}  a4 {[%clk 0:00:27]} 19. Bc2 {[%clk 0:02:22]}  Bb7 {[%clk 0:00:27]} 20. Nf5 {[%clk 0:02:22]}  g6 {[%clk 0:00:19]} 21. Ng7+ {[%clk 0:02:19]}  Kd8 {[%clk 0:00:19]} 22. Be5 {[%clk 0:01:37]}  Ra6 {[%clk 0:00:19]} 23. g4 {[%clk 0:01:28]}  Kc8 {[%clk 0:00:19]} 24. Bc3 {[%clk 0:01:27]}  b4 {[%clk 0:00:08]} 25. Bxb4 {[%clk 0:01:25]}  e3 {[%clk 0:00:08]} 26. Rhe1 {[%clk 0:01:16]}  exf2 {[%clk 0:00:08]} 27. Rf1 {[%clk 0:01:16]}  Nxg4 {[%clk 0:00:08]} 28. Rd4 {[%clk 0:01:12]}  Ne3 {[%clk 0:00:04]} 29. Rxf2 {[%clk 0:01:10]}  Rc6 {[%clk 0:00:04]} 30. Bc3 {[%clk 0:01:06]}  Nxc2 {[%clk 0:00:02]} 31. Kxc2 {[%clk 0:01:03]}  f5 {[%clk 0:00:02]} 32. Re2 {[%clk 0:00:54]}  Rg8 {[%clk 0:00:02]} 33. Re7 {[%clk 0:00:53]}  Nb6 {[%clk 0:00:02]} 34. Ne6 {[%clk 0:00:47]}  Kb8 {[%clk 0:00:01]} 35. Rxh7 {[%clk 0:00:38]}  Rc4 {[%clk 0:00:01]} 36. Rxc4 {[%clk 0:00:24]}  Nxc4 {[%clk 0:00:02]} 37. Kd3 {[%clk 0:00:24]}  Be4+ {[%clk 0:00:03]} 38. Kxc4 {[%clk 0:00:23]}  Rc8+ {[%clk 0:00:03]} 39. Kb4 {[%clk 0:00:23]}  Bd5 {[%clk 0:00:02]} 40. Be5+ {[%clk 0:00:23]}  Ka8 {[%clk 0:00:02]} 41. Nc7+ {[%clk 0:00:23]} 1-0


[Site "https://www.chess.com"]

[Event "Titled Tuesday Blitz April 12 Early 2022"]
[White "Fathy, Elameir"]
[Black "Butti, Enrique"]
[WhiteFideId "10600396"]
[BlackFideId "3700470"]
[WhiteElo "2311"]
[BlackElo "2080"]
[Result "1-0"]
[Round "02"]
[TimeControl "180+1"]
[Date "2022.04.13"]
[WhiteClock "0:00:10"]
[BlackClock "0:00:15"]

1. d4 {[%clk 0:02:53]}  Nf6 {[%clk 0:02:59]} 2. c4 {[%clk 0:02:53]}  e6 {[%clk 0:02:58]} 3. Nf3 {[%clk 0:02:54]}  b6 {[%clk 0:02:57]} 4. g3 {[%clk 0:02:54]}  Ba6 {[%clk 0:02:56]} 5. b3 {[%clk 0:02:54]}  Bb4+ {[%clk 0:02:53]} 6. Bd2 {[%clk 0:02:54]}  Be7 {[%clk 0:02:53]} 7. Bg2 {[%clk 0:02:55]}  c6 {[%clk 0:02:52]} 8. O-O {[%clk 0:02:55]}  d5 {[%clk 0:02:52]} 9. Bc3 {[%clk 0:02:55]}  Nbd7 {[%clk 0:02:42]} 10. Nbd2 {[%clk 0:02:54]}  O-O {[%clk 0:02:40]} 11. Re1 {[%clk 0:02:51]}  c5 {[%clk 0:02:30]} 12. e4 {[%clk 0:02:48]}  cxd4 {[%clk 0:02:28]} 13. Nxd4 {[%clk 0:02:44]}  Nc5 {[%clk 0:02:13]} 14. e5 {[%clk 0:02:22]}  Nfe4 {[%clk 0:01:55]} 15. Nc6 {[%clk 0:02:11]}  Qd7 {[%clk 0:01:47]} 16. Nxe7+ {[%clk 0:02:09]}  Qxe7 {[%clk 0:01:46]} 17. Nxe4 {[%clk 0:02:08]}  Nxe4 {[%clk 0:01:44]} 18. Bxe4 {[%clk 0:02:02]}  dxe4 {[%clk 0:01:43]} 19. Rxe4 {[%clk 0:02:03]}  Bb7 {[%clk 0:01:42]} 20. Re3 {[%clk 0:02:03]}  Rfd8 {[%clk 0:01:36]} 21. Qe2 {[%clk 0:02:03]}  Qd7 {[%clk 0:01:32]} 22. f3 {[%clk 0:01:53]}  Qc6 {[%clk 0:01:24]} 23. Rd1 {[%clk 0:01:47]}  h5 {[%clk 0:01:17]} 24. h4 {[%clk 0:01:39]}  a5 {[%clk 0:01:09]} 25. a4 {[%clk 0:01:35]}  Qc5 {[%clk 0:01:04]} 26. Rxd8+ {[%clk 0:01:25]}  Rxd8 {[%clk 0:01:02]} 27. Kg2 {[%clk 0:01:26]}  Qa3 {[%clk 0:00:50]} 28. Be1 {[%clk 0:00:55]}  Qc1 {[%clk 0:00:45]} 29. Kf2 {[%clk 0:00:42]}  Rd1 {[%clk 0:00:39]} 30. Rd3 {[%clk 0:00:35]}  Bxf3 {[%clk 0:00:32]} 31. Rxd1 {[%clk 0:00:23]}  Qxd1 {[%clk 0:00:29]} 32. Qxf3 {[%clk 0:00:20]}  Qc2+ {[%clk 0:00:28]} 33. Kg1 {[%clk 0:00:19]}  Qb1 {[%clk 0:00:25]} 34. Qe3 {[%clk 0:00:17]}  Kh7 {[%clk 0:00:22]} 35. Kg2 {[%clk 0:00:17]}  Qf5 {[%clk 0:00:20]} 36. Bf2 {[%clk 0:00:17]}  g6 {[%clk 0:00:19]} 37. Qxb6 {[%clk 0:00:16]}  Qxe5 {[%clk 0:00:18]} 38. Qd4 {[%clk 0:00:15]}  Qf5 {[%clk 0:00:16]} 39. c5 {[%clk 0:00:14]}  Qc2 {[%clk 0:00:15]} 40. Qc4 {[%clk 0:00:10]} 1-0


[Site "https://www.chess.com"]

[Event "Titled Tuesday Blitz April 12 Early 2022"]
[White "Gabdrakhmanov, Azat"]
[Black "GodDMuhammad"]
[WhiteFideId "34189197"]
[WhiteElo "2279"]
[BlackElo "2278"]
[Result "0-1"]
[Round "02"]
[TimeControl "180+1"]
[Date "2022.04.13"]
[WhiteClock "0:00:05"]
[BlackClock "0:00:40"]

1. e4 {[%clk 0:03:00]}  e5 {[%clk 0:02:59]} 2. Nf3 {[%clk 0:03:00]}  f5 {[%clk 0:02:59]} 3. d4 {[%clk 0:02:58]}  fxe4 {[%clk 0:02:58]} 4. Nxe5 {[%clk 0:02:58]}  Nf6 {[%clk 0:02:59]} 5. Nc3 {[%clk 0:02:55]}  d6 {[%clk 0:02:59]} 6. Nc4 {[%clk 0:02:54]}  d5 {[%clk 0:02:59]} 7. Ne3 {[%clk 0:02:54]}  c6 {[%clk 0:03:00]} 8. f3 {[%clk 0:02:50]}  exf3 {[%clk 0:03:00]} 9. Qxf3 {[%clk 0:02:49]}  Bd6 {[%clk 0:03:00]} 10. Nf5 {[%clk 0:02:35]}  Bxf5 {[%clk 0:02:57]} 11. Qxf5 {[%clk 0:02:35]}  O-O {[%clk 0:02:58]} 12. Bg5 {[%clk 0:02:30]}  Qe7+ {[%clk 0:02:52]} 13. Be2 {[%clk 0:02:28]}  h6 {[%clk 0:02:48]} 14. Bh4 {[%clk 0:02:22]}  Nbd7 {[%clk 0:02:40]} 15. O-O-O {[%clk 0:02:20]}  Rae8 {[%clk 0:02:34]} 16. Bd3 {[%clk 0:02:10]}  Qe3+ {[%clk 0:02:26]} 17. Kb1 {[%clk 0:02:09]}  Qxd4 {[%clk 0:01:57]} 18. Bg3 {[%clk 0:01:20]}  Bxg3 {[%clk 0:01:21]} 19. hxg3 {[%clk 0:01:21]}  Qe5 {[%clk 0:01:21]} 20. Qh3 {[%clk 0:01:19]}  Nc5 {[%clk 0:01:18]} 21. Bg6 {[%clk 0:01:16]}  Re7 {[%clk 0:01:14]} 22. g4 {[%clk 0:01:13]}  Nfe4 {[%clk 0:01:11]} 23. Bxe4 {[%clk 0:01:07]}  Nxe4 {[%clk 0:01:12]} 24. Nxe4 {[%clk 0:01:06]}  dxe4 {[%clk 0:01:10]} 25. Rde1 {[%clk 0:01:06]}  e3 {[%clk 0:01:09]} 26. a3 {[%clk 0:01:06]}  Rf2 {[%clk 0:01:03]} 27. Rc1 {[%clk 0:01:01]}  c5 {[%clk 0:00:56]} 28. Rhd1 {[%clk 0:00:46]}  Re6 {[%clk 0:00:55]} 29. g5 {[%clk 0:00:39]}  Rb6 {[%clk 0:00:53]} 30. Rd8+ {[%clk 0:00:37]}  Kh7 {[%clk 0:00:53]} 31. g6+ {[%clk 0:00:28]}  Kxg6 {[%clk 0:00:54]} 32. b4 {[%clk 0:00:22]}  cxb4 {[%clk 0:00:50]} 33. Qg4+ {[%clk 0:00:11]}  Kh7 {[%clk 0:00:50]} 34. Rd4 {[%clk 0:00:09]}  bxa3+ {[%clk 0:00:48]} 35. Ka2 {[%clk 0:00:10]}  Qe6+ {[%clk 0:00:38]} 36. Qxe6 {[%clk 0:00:07]}  Rxe6 {[%clk 0:00:39]} 37. Kxa3 {[%clk 0:00:04]}  e2 {[%clk 0:00:39]} 38. Re1 {[%clk 0:00:05]}  Rf1 {[%clk 0:00:40]} 0-1


[Site "https://www.chess.com"]

[Event "Titled Tuesday Blitz April 12 Early 2022"]
[White "Galperin, Platon"]
[Black "Bachmann, Axel"]
[WhiteFideId "14165414"]
[BlackFideId "3700488"]
[WhiteElo "2432"]
[BlackElo "2587"]
[Result "1-0"]
[Round "02"]
[TimeControl "180+1"]
[Date "2022.04.13"]
[WhiteClock "0:00:06"]
[BlackClock "0:00:01"]

1. Nf3 {[%clk 0:02:58]}  Nf6 {[%clk 0:02:55]} 2. d4 {[%clk 0:02:58]}  g6 {[%clk 0:02:54]} 3. Nbd2 {[%clk 0:02:56]}  d5 {[%clk 0:02:51]} 4. e3 {[%clk 0:02:57]}  Bg7 {[%clk 0:02:49]} 5. b4 {[%clk 0:02:57]}  a5 {[%clk 0:02:49]} 6. b5 {[%clk 0:02:58]}  c5 {[%clk 0:02:49]} 7. bxc6 {[%clk 0:02:56]}  Nxc6 {[%clk 0:02:50]} 8. a4 {[%clk 0:02:56]}  Bf5 {[%clk 0:02:50]} 9. Bb5 {[%clk 0:02:52]}  O-O {[%clk 0:02:49]} 10. O-O {[%clk 0:02:53]}  Rc8 {[%clk 0:02:28]} 11. c3 {[%clk 0:02:45]}  Ne4 {[%clk 0:02:27]} 12. Nxe4 {[%clk 0:02:45]}  Bxe4 {[%clk 0:02:28]} 13. Nd2 {[%clk 0:02:44]}  Bf5 {[%clk 0:02:27]} 14. Qb3 {[%clk 0:02:39]}  h5 {[%clk 0:02:18]} 15. Ba3 {[%clk 0:02:34]}  h4 {[%clk 0:02:18]} 16. h3 {[%clk 0:02:27]}  Bh6 {[%clk 0:02:12]} 17. Rfe1 {[%clk 0:02:27]}  Be6 {[%clk 0:02:06]} 18. Rac1 {[%clk 0:02:24]}  Kh8 {[%clk 0:01:51]} 19. c4 {[%clk 0:02:19]}  Nxd4 {[%clk 0:01:39]} 20. Bb2 {[%clk 0:02:19]}  dxc4 {[%clk 0:01:26]} 21. Bxc4 {[%clk 0:02:19]}  Bxc4 {[%clk 0:01:24]} 22. Rxc4 {[%clk 0:02:17]}  e5 {[%clk 0:01:21]} 23. Rxc8 {[%clk 0:01:15]}  Qxc8 {[%clk 0:01:09]} 24. exd4 {[%clk 0:01:16]}  Bxd2 {[%clk 0:01:07]} 25. Rxe5 {[%clk 0:01:17]}  Bf4 {[%clk 0:00:48]} 26. Re4 {[%clk 0:00:55]}  Qf5 {[%clk 0:00:47]} 27. d5+ {[%clk 0:00:56]}  Kg8 {[%clk 0:00:42]} 28. Qc3 {[%clk 0:00:54]}  f6 {[%clk 0:00:37]} 29. Qf3 {[%clk 0:00:38]}  g5 {[%clk 0:00:12]} 30. Bc1 {[%clk 0:00:20]}  Rd8 {[%clk 0:00:04]} 31. Bxf4 {[%clk 0:00:19]}  gxf4 {[%clk 0:00:02]} 32. Rxf4 {[%clk 0:00:16]}  Qxd5 {[%clk 0:00:02]} 33. Qe3 {[%clk 0:00:06]}  Qd1+ {[%clk 0:00:02]} 34. Kh2 {[%clk 0:00:06]}  Qd6 {[%clk 0:00:02]} 35. Qf3 {[%clk 0:00:06]}  Kf7 {[%clk 0:00:02]} 36. Qh5+ {[%clk 0:00:05]}  Ke7 {[%clk 0:00:01]} 37. Qxh4 {[%clk 0:00:06]} 1-0


[Site "https://www.chess.com"]

[Event "Titled Tuesday Blitz April 12 Early 2022"]
[White "Gatterer, Florian"]
[Black "Artemenko, Oleg"]
[WhiteFideId "811688"]
[BlackFideId "14201798"]
[WhiteElo "2218"]
[BlackElo "2287"]
[Result "0-1"]
[Round "02"]
[TimeControl "180+1"]
[Date "2022.04.13"]
[WhiteClock "0:00:01"]
[BlackClock "0:00:24"]

1. Nf3 {[%clk 0:03:00]}  e6 {[%clk 0:03:00]} 2. c4 {[%clk 0:02:59]}  Nf6 {[%clk 0:03:01]} 3. Nc3 {[%clk 0:02:52]}  c5 {[%clk 0:03:01]} 4. e3 {[%clk 0:02:51]}  d5 {[%clk 0:03:00]} 5. d4 {[%clk 0:02:50]}  Nc6 {[%clk 0:03:00]} 6. a3 {[%clk 0:02:47]}  a6 {[%clk 0:02:58]} 7. dxc5 {[%clk 0:02:46]}  Bxc5 {[%clk 0:02:59]} 8. b4 {[%clk 0:02:46]}  Ba7 {[%clk 0:02:59]} 9. Bb2 {[%clk 0:02:45]}  O-O {[%clk 0:02:59]} 10. cxd5 {[%clk 0:02:44]}  exd5 {[%clk 0:03:00]} 11. Be2 {[%clk 0:02:42]}  d4 {[%clk 0:02:54]} 12. exd4 {[%clk 0:02:41]}  Nxd4 {[%clk 0:02:54]} 13. Nxd4 {[%clk 0:02:40]}  Bxd4 {[%clk 0:02:52]} 14. O-O {[%clk 0:02:39]}  Bf5 {[%clk 0:02:35]} 15. Bf3 {[%clk 0:02:39]}  Rc8 {[%clk 0:02:34]} 16. Na4 {[%clk 0:02:20]}  Bxb2 {[%clk 0:02:30]} 17. Nxb2 {[%clk 0:02:19]}  Qb6 {[%clk 0:02:23]} 18. Na4 {[%clk 0:02:13]}  Qb5 {[%clk 0:02:23]} 19. Nc5 {[%clk 0:02:08]}  b6 {[%clk 0:02:23]} 20. Be2 {[%clk 0:02:04]}  Qc6 {[%clk 0:02:19]} 21. Bf3 {[%clk 0:01:57]}  Qc7 {[%clk 0:01:51]} 22. Nxa6 {[%clk 0:01:55]}  Qc3 {[%clk 0:01:52]} 23. Bb7 {[%clk 0:01:28]}  Rcd8 {[%clk 0:01:41]} 24. Qc1 {[%clk 0:01:28]}  Qe5 {[%clk 0:01:35]} 25. Re1 {[%clk 0:01:22]}  Qd6 {[%clk 0:01:29]} 26. h3 {[%clk 0:01:17]}  Rd7 {[%clk 0:01:23]} 27. Bf3 {[%clk 0:01:03]}  Bd3 {[%clk 0:01:18]} 28. Rd1 {[%clk 0:00:51]}  Qe5 {[%clk 0:01:18]} 29. Re1 {[%clk 0:00:44]}  Qf5 {[%clk 0:01:12]} 30. Be2 {[%clk 0:00:33]}  Bxe2 {[%clk 0:00:56]} 31. Rxe2 {[%clk 0:00:33]}  Nd5 {[%clk 0:00:56]} 32. Qc6 {[%clk 0:00:17]}  Nf4 {[%clk 0:00:55]} 33. Re4 {[%clk 0:00:16]}  Rd2 {[%clk 0:00:51]} 34. Rf1 {[%clk 0:00:13]}  h5 {[%clk 0:00:46]} 35. Qc4 {[%clk 0:00:12]}  g5 {[%clk 0:00:45]} 36. Nc7 {[%clk 0:00:11]}  Rc8 {[%clk 0:00:42]} 37. a4 {[%clk 0:00:07]}  Rd7 {[%clk 0:00:40]} 38. Re8+ {[%clk 0:00:03]}  Rxe8 {[%clk 0:00:40]} 39. Nxe8 {[%clk 0:00:04]}  Ne6 {[%clk 0:00:34]} 40. Qc8 {[%clk 0:00:03]}  Rd8 {[%clk 0:00:34]} 41. Qc6 {[%clk 0:00:03]}  Nd4 {[%clk 0:00:31]} 42. Nd6 {[%clk 0:00:03]}  Qe6 {[%clk 0:00:28]} 43. Qe4 {[%clk 0:00:01]}  Qxd6 {[%clk 0:00:26]} 44. h4 {[%clk 0:00:01]}  g4 {[%clk 0:00:24]} 0-1


[Site "https://www.chess.com"]

[Event "Titled Tuesday Blitz April 12 Early 2022"]
[White "Goryachkina, Aleksandra"]
[Black "Vokhidov, Shamsiddin"]
[WhiteFideId "4147103"]
[BlackFideId "14204223"]
[WhiteElo "2426"]
[BlackElo "2611"]
[Result "0-1"]
[Round "02"]
[TimeControl "180+1"]
[Date "2022.04.12"]
[WhiteClock "0:00:03"]
[BlackClock "0:00:03"]

1. e4 {[%clk 0:02:59]}  c5 {[%clk 0:02:59]} 2. Nf3 {[%clk 0:02:58]}  d6 {[%clk 0:02:55]} 3. Bb5+ {[%clk 0:02:57]}  Nd7 {[%clk 0:02:53]} 4. Ba4 {[%clk 0:02:55]}  Nf6 {[%clk 0:02:48]} 5. O-O {[%clk 0:02:54]}  e6 {[%clk 0:02:48]} 6. Re1 {[%clk 0:02:50]}  a6 {[%clk 0:02:47]} 7. c4 {[%clk 0:02:49]}  Qc7 {[%clk 0:02:42]} 8. Nc3 {[%clk 0:02:48]}  Be7 {[%clk 0:02:42]} 9. d3 {[%clk 0:02:44]}  O-O {[%clk 0:02:42]} 10. h3 {[%clk 0:02:33]}  b6 {[%clk 0:02:42]} 11. Be3 {[%clk 0:02:30]}  Bb7 {[%clk 0:02:41]} 12. Rc1 {[%clk 0:02:22]}  Rac8 {[%clk 0:02:40]} 13. a3 {[%clk 0:02:21]}  Rfd8 {[%clk 0:02:40]} 14. b4 {[%clk 0:02:18]}  Qb8 {[%clk 0:02:40]} 15. bxc5 {[%clk 0:02:10]}  dxc5 {[%clk 0:02:38]} 16. Qc2 {[%clk 0:02:02]}  h6 {[%clk 0:02:19]} 17. Rb1 {[%clk 0:02:01]}  Qc7 {[%clk 0:02:18]} 18. Ne2 {[%clk 0:01:53]}  Nf8 {[%clk 0:02:12]} 19. Bf4 {[%clk 0:01:49]}  Bd6 {[%clk 0:01:53]} 20. e5 {[%clk 0:01:34]}  Bxf3 {[%clk 0:01:53]} 21. exd6 {[%clk 0:01:34]}  Qb7 {[%clk 0:01:53]} 22. gxf3 {[%clk 0:01:33]}  Qxf3 {[%clk 0:01:54]} 23. Rxb6 {[%clk 0:01:27]}  Ng6 {[%clk 0:01:54]} 24. Bg3 {[%clk 0:01:26]}  Nh5 {[%clk 0:01:53]} 25. Qd2 {[%clk 0:01:18]}  Nxg3 {[%clk 0:01:50]} 26. fxg3 {[%clk 0:01:17]}  Ne5 {[%clk 0:01:37]} 27. Rf1 {[%clk 0:01:12]}  Qa8 {[%clk 0:01:29]} 28. Qe3 {[%clk 0:01:05]}  f6 {[%clk 0:01:16]} 29. Nf4 {[%clk 0:01:04]}  Qa7 {[%clk 0:01:09]} 30. Rfb1 {[%clk 0:01:03]}  Rb8 {[%clk 0:00:59]} 31. Rxb8 {[%clk 0:00:48]}  Rxb8 {[%clk 0:00:59]} 32. Rxb8+ {[%clk 0:00:48]}  Qxb8 {[%clk 0:00:59]} 33. d7 {[%clk 0:00:47]}  Kf7 {[%clk 0:00:51]} 34. Qe2 {[%clk 0:00:39]}  Ke7 {[%clk 0:00:40]} 35. Qf2 {[%clk 0:00:25]}  Qd6 {[%clk 0:00:39]} 36. Qe3 {[%clk 0:00:14]}  g5 {[%clk 0:00:37]} 37. Ne2 {[%clk 0:00:14]}  Nxd3 {[%clk 0:00:31]} 38. Nc3 {[%clk 0:00:13]}  f5 {[%clk 0:00:19]} 39. Kf1 {[%clk 0:00:08]}  Ne5 {[%clk 0:00:18]} 40. Qe2 {[%clk 0:00:07]}  Qd4 {[%clk 0:00:17]} 41. Nd1 {[%clk 0:00:03]}  Nxc4 {[%clk 0:00:16]} 42. Nf2 {[%clk 0:00:02]}  Ne3+ {[%clk 0:00:12]} 43. Kg1 {[%clk 0:00:03]}  Nd5 {[%clk 0:00:11]} 44. Bb3 {[%clk 0:00:02]}  Kxd7 {[%clk 0:00:09]} 45. Bxd5 {[%clk 0:00:03]}  Qxd5 {[%clk 0:00:09]} 46. Qxa6 {[%clk 0:00:03]}  c4 {[%clk 0:00:10]} 47. Qa7+ {[%clk 0:00:03]}  Kd6 {[%clk 0:00:10]} 48. Qb6+ {[%clk 0:00:04]}  Ke5 {[%clk 0:00:10]} 49. Qe3+ {[%clk 0:00:04]}  Kf6 {[%clk 0:00:10]} 50. a4 {[%clk 0:00:04]}  Kg6 {[%clk 0:00:07]} 51. Qc3 {[%clk 0:00:04]}  Qc5 {[%clk 0:00:07]} 52. a5 {[%clk 0:00:04]}  Qb5 {[%clk 0:00:06]} 53. Qa3 {[%clk 0:00:03]}  Qa6 {[%clk 0:00:06]} 54. Nd1 {[%clk 0:00:03]}  Qa7+ {[%clk 0:00:06]} 55. Kf1 {[%clk 0:00:03]}  Qd4 {[%clk 0:00:05]} 56. Nc3 {[%clk 0:00:02]}  Qd3+ {[%clk 0:00:05]} 57. Ke1 {[%clk 0:00:03]}  Qxg3+ {[%clk 0:00:05]} 58. Kd2 {[%clk 0:00:03]}  f4 {[%clk 0:00:04]} 59. a6 {[%clk 0:00:03]}  Qe3+ {[%clk 0:00:04]} 60. Kc2 {[%clk 0:00:03]}  Qd3+ {[%clk 0:00:03]} 61. Kc1 {[%clk 0:00:03]}  f3 {[%clk 0:00:03]} 0-1


[Site "https://www.chess.com"]

[Event "Titled Tuesday Blitz April 12 Early 2022"]
[White "Grandelius, Nils"]
[Black "Riehle, Marco"]
[WhiteFideId "1710400"]
[BlackFideId "12904392"]
[WhiteElo "2617"]
[BlackElo "2462"]
[Result "1-0"]
[Round "02"]
[TimeControl "180+1"]
[Date "2022.04.13"]
[WhiteClock "0:00:52"]
[BlackClock "0:01:51"]

1. d4 {[%clk 0:03:00]}  d5 {[%clk 0:02:59]} 2. c4 {[%clk 0:03:00]}  e6 {[%clk 0:02:58]} 3. Bf4 {[%clk 0:02:57]}  Bd6 {[%clk 0:02:57]} 4. Bg3 {[%clk 0:02:57]}  Nf6 {[%clk 0:02:56]} 5. e3 {[%clk 0:02:56]}  O-O {[%clk 0:02:55]} 6. Nc3 {[%clk 0:02:56]}  b6 {[%clk 0:02:54]} 7. cxd5 {[%clk 0:02:53]}  exd5 {[%clk 0:02:52]} 8. Bd3 {[%clk 0:02:50]}  c5 {[%clk 0:02:51]} 9. Nge2 {[%clk 0:02:50]}  c4 {[%clk 0:02:51]} 10. Bc2 {[%clk 0:02:50]}  a6 {[%clk 0:02:48]} 11. Bh4 {[%clk 0:02:25]}  Bb7 {[%clk 0:02:44]} 12. f3 {[%clk 0:02:17]}  b5 {[%clk 0:02:40]} 13. a3 {[%clk 0:02:18]}  Nbd7 {[%clk 0:02:37]} 14. e4 {[%clk 0:02:12]}  dxe4 {[%clk 0:02:37]} 15. fxe4 {[%clk 0:02:13]}  Be7 {[%clk 0:02:37]} 16. Bg3 {[%clk 0:01:44]}  Re8 {[%clk 0:02:27]} 17. O-O {[%clk 0:01:42]}  Qb6 {[%clk 0:02:24]} 18. Kh1 {[%clk 0:01:41]}  Rad8 {[%clk 0:02:23]} 19. e5 {[%clk 0:01:35]}  Nd5 {[%clk 0:02:23]} 20. Nxd5 {[%clk 0:01:32]}  Bxd5 {[%clk 0:02:24]} 21. Nc3 {[%clk 0:01:32]}  Bb7 {[%clk 0:02:23]} 22. Rxf7 {[%clk 0:01:21]}  Kxf7 {[%clk 0:02:22]} 23. Qh5+ {[%clk 0:01:21]}  Kf8 {[%clk 0:02:18]} 24. Rf1+ {[%clk 0:01:09]}  Nf6 {[%clk 0:02:17]} 25. Qxh7 {[%clk 0:01:05]}  Qxd4 {[%clk 0:02:13]} 26. Bg6 {[%clk 0:01:00]}  Bc5 {[%clk 0:01:51]} 27. Rxf6+ {[%clk 0:00:52]} 1-0


[Site "https://www.chess.com"]

[Event "Titled Tuesday Blitz April 12 Early 2022"]
[White "Gu, Xiaobing"]
[Black "Migot, Tangi"]
[WhiteFideId "8602611"]
[BlackFideId "662445"]
[WhiteElo "2174"]
[BlackElo "2514"]
[Result "0-1"]
[Round "02"]
[TimeControl "180+1"]
[Date "2022.04.13"]
[WhiteClock "0:00:36"]
[BlackClock "0:00:33"]

1. e4 {[%clk 0:03:00]}  g6 {[%clk 0:03:00]} 2. d4 {[%clk 0:03:00]}  Bg7 {[%clk 0:03:01]} 3. Nc3 {[%clk 0:02:59]}  c5 {[%clk 0:03:02]} 4. Be3 {[%clk 0:02:46]}  Nc6 {[%clk 0:02:53]} 5. d5 {[%clk 0:02:42]}  Nd4 {[%clk 0:02:53]} 6. Nf3 {[%clk 0:02:31]}  Nxf3+ {[%clk 0:02:48]} 7. Qxf3 {[%clk 0:02:30]}  d6 {[%clk 0:02:49]} 8. Bb5+ {[%clk 0:02:22]}  Bd7 {[%clk 0:02:48]} 9. Bxd7+ {[%clk 0:02:22]}  Qxd7 {[%clk 0:02:49]} 10. O-O {[%clk 0:02:19]}  b5 {[%clk 0:02:48]} 11. a3 {[%clk 0:02:13]}  Nf6 {[%clk 0:02:47]} 12. Rad1 {[%clk 0:01:52]}  Ng4 {[%clk 0:02:44]} 13. Qe2 {[%clk 0:01:48]}  Nxe3 {[%clk 0:02:35]} 14. Qxe3 {[%clk 0:01:47]}  O-O {[%clk 0:02:26]} 15. Kh1 {[%clk 0:01:43]}  b4 {[%clk 0:02:24]} 16. axb4 {[%clk 0:01:39]}  cxb4 {[%clk 0:02:25]} 17. Ne2 {[%clk 0:01:34]}  Rfc8 {[%clk 0:02:22]} 18. Rd2 {[%clk 0:01:27]}  Bxb2 {[%clk 0:02:15]} 19. Qb3 {[%clk 0:01:26]}  Bc3 {[%clk 0:02:10]} 20. Nxc3 {[%clk 0:01:25]}  bxc3 {[%clk 0:02:09]} 21. Rd3 {[%clk 0:01:24]}  Qc7 {[%clk 0:02:08]} 22. f4 {[%clk 0:01:16]}  Qc4 {[%clk 0:02:06]} 23. Qxc4 {[%clk 0:01:00]}  Rxc4 {[%clk 0:02:05]} 24. e5 {[%clk 0:01:00]}  a5 {[%clk 0:02:00]} 25. g3 {[%clk 0:00:57]}  a4 {[%clk 0:02:00]} 26. Ra1 {[%clk 0:00:49]}  a3 {[%clk 0:01:54]} 27. Ra2 {[%clk 0:00:49]}  Kf8 {[%clk 0:01:37]} 28. Kg2 {[%clk 0:00:48]}  Ke8 {[%clk 0:01:38]} 29. Kf3 {[%clk 0:00:49]}  Kd7 {[%clk 0:01:38]} 30. Ke3 {[%clk 0:00:49]}  Raa4 {[%clk 0:01:25]} 31. Rd1 {[%clk 0:00:49]}  dxe5 {[%clk 0:01:20]} 32. fxe5 {[%clk 0:00:48]}  Re4+ {[%clk 0:01:16]} 33. Kf3 {[%clk 0:00:46]}  Rxe5 {[%clk 0:01:16]} 34. Rd3 {[%clk 0:00:44]}  Kd6 {[%clk 0:00:58]} 35. Rxc3 {[%clk 0:00:44]}  Rxd5 {[%clk 0:00:55]} 36. Rcxa3 {[%clk 0:00:43]}  Rxa3+ {[%clk 0:00:55]} 37. Rxa3 {[%clk 0:00:43]}  Rd2 {[%clk 0:00:55]} 38. c4 {[%clk 0:00:39]}  Rxh2 {[%clk 0:00:53]} 39. Ke4 {[%clk 0:00:38]}  f5+ {[%clk 0:00:50]} 40. Kd4 {[%clk 0:00:38]}  e5+ {[%clk 0:00:48]} 41. Kc3 {[%clk 0:00:38]}  e4 {[%clk 0:00:44]} 42. Ra6+ {[%clk 0:00:38]}  Kc5 {[%clk 0:00:39]} 43. Ra5+ {[%clk 0:00:38]}  Kb6 {[%clk 0:00:39]} 44. Re5 {[%clk 0:00:37]}  Rg2 {[%clk 0:00:36]} 45. Re6+ {[%clk 0:00:37]}  Kc5 {[%clk 0:00:36]} 46. Re5+ {[%clk 0:00:37]}  Kd6 {[%clk 0:00:37]} 47. Rd5+ {[%clk 0:00:37]}  Kc6 {[%clk 0:00:37]} 48. Kd4 {[%clk 0:00:37]}  Rd2+ {[%clk 0:00:34]} 49. Ke5 {[%clk 0:00:37]}  Rxd5+ {[%clk 0:00:33]} 50. cxd5+ {[%clk 0:00:37]}  Kd7 {[%clk 0:00:33]} 51. Kf6 {[%clk 0:00:36]}  e3 {[%clk 0:00:33]} 0-1


[Site "https://www.chess.com"]